[Event "*** Titled Tuesday Blitz"]
[Site "Chess.com"]
[Date "2020.04.28"]
[Round "7"]
[White "SamuelGhimpu2003"]
[Black "Alexander_Donchenko"]
[Result "0-1"]
[WhiteElo "2689"]
[BlackElo "2868"]
[TimeControl "180+1"]
[EndTime "11:19:37 PDT"]
[Termination "Alexander_Donchenko won by resignation"]

1. Nf3 {[%clk 0:03:00.9]} 1... Nf6 {[%clk 0:02:59.8]} 2. g3 {[%clk 0:03:00.4]}
2... b5 {[%clk 0:02:59.8]} 3. Bg2 {[%clk 0:02:55.6]} 3... Bb7 {[%clk 0:03:00.2]}
4. O-O {[%clk 0:02:56.5]} 4... e6 {[%clk 0:03:00.6]} 5. d3 {[%clk 0:02:56.5]}
5... c5 {[%clk 0:03:00.5]} 6. e4 {[%clk 0:02:56.6]} 6... d6 {[%clk 0:03:00.6]}
7. a4 {[%clk 0:02:54.5]} 7... a6 {[%clk 0:02:58.9]} 8. axb5 {[%clk 0:02:54]}
8... axb5 {[%clk 0:02:59.8]} 9. Rxa8 {[%clk 0:02:54.2]} 9... Bxa8 {[%clk
0:03:00.7]} 10. c3 {[%clk 0:02:53.6]} 10... Be7 {[%clk 0:02:58.5]} 11. Re1
{[%clk 0:02:53.2]} 11... O-O {[%clk 0:02:58.1]} 12. Qb3 {[%clk 0:02:49.6]} 12...
Qa5 {[%clk 0:02:20.2]} 13. Na3 {[%clk 0:02:45.2]} 13... b4 {[%clk 0:02:01.7]}
14. Nc4 {[%clk 0:02:41.3]} 14... Qb5 {[%clk 0:02:01.9]} 15. Bd2 {[%clk
0:02:28.4]} 15... Nc6 {[%clk 0:01:59.1]} 16. Ra1 {[%clk 0:02:18.3]} 16... Rb8
{[%clk 0:01:51.8]} 17. Bf4 {[%clk 0:01:35.8]} 17... e5 {[%clk 0:01:37.7]} 18.
Bg5 {[%clk 0:01:29.6]} 18... Ne8 {[%clk 0:01:20.7]} 19. Bxe7 {[%clk 0:01:21.2]}
19... Nxe7 {[%clk 0:01:21.6]} 20. Nxd6 {[%clk 0:01:21.5]} 20... Nxd6 {[%clk
0:01:19.9]} 21. Nxe5 {[%clk 0:01:18.5]} 21... bxc3 {[%clk 0:01:16.6]} 22. Qxc3
{[%clk 0:00:47.4]} 22... Bb7 {[%clk 0:01:05.8]} 23. Ra5 {[%clk 0:00:40]} 23...
Qe8 {[%clk 0:00:53.2]} 24. Rxc5 {[%clk 0:00:38.4]} 24... Ng6 {[%clk 0:00:48]}
25. Nxg6 {[%clk 0:00:32.9]} 25... hxg6 {[%clk 0:00:48.9]} 26. b4 {[%clk
0:00:28.4]} 26... Ra8 {[%clk 0:00:40.7]} 27. h4 {[%clk 0:00:25]} 27... Rd8
{[%clk 0:00:37.7]} 28. Kh2 {[%clk 0:00:19.7]} 28... Nb5 {[%clk 0:00:30.8]} 29.
Qc4 {[%clk 0:00:20]} 29... Nd4 {[%clk 0:00:27.5]} 30. b5 {[%clk 0:00:20.2]}
30... Ne6 {[%clk 0:00:25.1]} 31. Re5 {[%clk 0:00:16.9]} 31... Rc8 {[%clk
0:00:24.2]} 32. Qb3 {[%clk 0:00:15.7]} 32... Rb8 {[%clk 0:00:17.4]} 33. d4
{[%clk 0:00:15]} 33... Bc8 {[%clk 0:00:15.1]} 34. d5 {[%clk 0:00:12.3]} 34...
Qxb5 {[%clk 0:00:15]} 35. Qc3 {[%clk 0:00:10.1]} 35... Qc5 {[%clk 0:00:11.3]}
36. Qf3 {[%clk 0:00:04.9]} 36... Nc7 {[%clk 0:00:08.6]} 37. Qf4 {[%clk
0:00:03.6]} 37... Qd6 {[%clk 0:00:08]} 38. Rg5 {[%clk 0:00:02.2]} 38... Qxf4
{[%clk 0:00:07.5]} 39. gxf4 {[%clk 0:00:03.1]} 39... Bd7 {[%clk 0:00:07.3]} 40.
Kg3 {[%clk 0:00:04]} 40... Ne8 {[%clk 0:00:07.3]} 41. e5 {[%clk 0:00:04.3]}
41... Rb3+ {[%clk 0:00:07.4]} 42. Kh2 {[%clk 0:00:04]} 42... Bf5 {[%clk
0:00:07.5]} 43. h5 {[%clk 0:00:03.9]} 43... Kf8 {[%clk 0:00:07.7]} 44. Rg3
{[%clk 0:00:04.5]} 44... Rxg3 {[%clk 0:00:06.3]} 45. Kxg3 {[%clk 0:00:05.4]}
45... gxh5 {[%clk 0:00:06.9]} 46. Kh4 {[%clk 0:00:06.3]} 46... g6 {[%clk
0:00:06.7]} 47. Kg5 {[%clk 0:00:07.2]} 47... Ke7 {[%clk 0:00:06.9]} 48. Bf3
{[%clk 0:00:07.3]} 48... f6+ {[%clk 0:00:05.8]} 49. exf6+ {[%clk 0:00:07.8]}
49... Nxf6 {[%clk 0:00:06.7]} 50. d6+ {[%clk 0:00:08.7]} 50... Kf7 {[%clk
0:00:06.8]} 51. d7 {[%clk 0:00:09.2]} 51... Nxd7 {[%clk 0:00:06.8]} 52. Bxh5
{[%clk 0:00:09.2]} 52... gxh5 {[%clk 0:00:05.7]} 53. Kxf5 {[%clk 0:00:10.1]}
53... Nf6 {[%clk 0:00:05.5]} 54. Kg5 {[%clk 0:00:10]} 54... Kg7 {[%clk 0:00:06]}
55. f5 {[%clk 0:00:09.9]} 55... Kf7 {[%clk 0:00:06.2]} 56. Kh4 {[%clk
0:00:09.6]} 56... Kf8 {[%clk 0:00:06.3]} 57. Kg5 {[%clk 0:00:03.4]} 57... Kg7
{[%clk 0:00:06.5]} 58. f3 {[%clk 0:00:03]} 58... Kf7 {[%clk 0:00:06.9]} 59. Kh4
{[%clk 0:00:03.3]} 59... Kg8 {[%clk 0:00:07.2]} 60. Kg5 {[%clk 0:00:02]} 60...
Kg7 {[%clk 0:00:07.4]} 61. f4 {[%clk 0:00:02.7]} 61... Kf7 {[%clk 0:00:07.1]}
62. Kh4 {[%clk 0:00:03.6]} 0-1

[Event "*** Titled Tuesday Blitz"]
[Site "Chess.com"]
[Date "2020.04.28"]
[Round "7"]
[White "ChessBitl"]
[Black "SiddharthGMJagadeesh"]
[Result "0-1"]
[WhiteElo "2282"]
[BlackElo "2474"]
[TimeControl "180+1"]
[EndTime "11:19:37 PDT"]
[Termination "SiddharthGMJagadeesh won on time"]

1. e4 {[%clk 0:03:00]} 1... c5 {[%clk 0:02:59.6]} 2. Nf3 {[%clk 0:02:59.9]} 2...
Nc6 {[%clk 0:02:59.6]} 3. d4 {[%clk 0:03:00.2]} 3... cxd4 {[%clk 0:03:00.5]} 4.
Nxd4 {[%clk 0:03:00.5]} 4... g6 {[%clk 0:03:01.2]} 5. c4 {[%clk 0:03:00]} 5...
Bg7 {[%clk 0:03:01.4]} 6. Be3 {[%clk 0:03:00.5]} 6... Nf6 {[%clk 0:03:01]} 7.
Nc3 {[%clk 0:03:01]} 7... O-O {[%clk 0:03:01.5]} 8. f3 {[%clk 0:02:59.2]} 8...
b6 {[%clk 0:03:01]} 9. Qd2 {[%clk 0:02:57.8]} 9... Bb7 {[%clk 0:03:00.1]} 10.
Be2 {[%clk 0:02:58.1]} 10... Qb8 {[%clk 0:02:59]} 11. O-O {[%clk 0:02:57.3]}
11... Rd8 {[%clk 0:02:59.4]} 12. Rfd1 {[%clk 0:02:56.4]} 12... d6 {[%clk
0:02:59.4]} 13. Rac1 {[%clk 0:02:55.3]} 13... Rd7 {[%clk 0:02:59.5]} 14. a3
{[%clk 0:02:47.4]} 14... Qf8 {[%clk 0:02:59.5]} 15. b4 {[%clk 0:02:46.8]} 15...
Rad8 {[%clk 0:02:59.8]} 16. Ndb5 {[%clk 0:02:44.3]} 16... Ne8 {[%clk 0:02:48.4]}
17. Nd5 {[%clk 0:02:41.4]} 17... e6 {[%clk 0:02:43.1]} 18. Ndc3 {[%clk
0:02:38.5]} 18... Ba8 {[%clk 0:02:08.7]} 19. Nd4 {[%clk 0:02:33.8]} 19... Nc7
{[%clk 0:02:04.5]} 20. Nxc6 {[%clk 0:02:25.9]} 20... Bxc6 {[%clk 0:02:03.9]} 21.
Bf1 {[%clk 0:02:22.9]} 21... d5 {[%clk 0:01:43.6]} 22. exd5 {[%clk 0:02:16.1]}
22... exd5 {[%clk 0:01:41.7]} 23. cxd5 {[%clk 0:02:00.5]} 23... Bxd5 {[%clk
0:01:25.4]} 24. Nxd5 {[%clk 0:01:56]} 24... Rxd5 {[%clk 0:01:03]} 25. Qc2 {[%clk
0:01:54]} 25... Ne6 {[%clk 0:01:00.4]} 26. Rxd5 {[%clk 0:01:52.1]} 26... Rxd5
{[%clk 0:01:01.3]} 27. Bc4 {[%clk 0:01:47.8]} 27... Rd6 {[%clk 0:00:58.6]} 28.
Bxe6 {[%clk 0:01:37.7]} 28... Rxe6 {[%clk 0:00:57.3]} 29. Bf2 {[%clk 0:01:36.8]}
29... Re8 {[%clk 0:00:45.9]} 30. Qc4 {[%clk 0:01:31.2]} 30... Be5 {[%clk
0:00:43.6]} 31. Re1 {[%clk 0:01:23]} 31... Bb8 {[%clk 0:00:42.8]} 32. Rc1 {[%clk
0:01:14.5]} 32... Qh6 {[%clk 0:00:33.7]} 33. g3 {[%clk 0:01:10.1]} 33... Qh5
{[%clk 0:00:30.7]} 34. Kg2 {[%clk 0:01:09]} 34... Qg5 {[%clk 0:00:17.9]} 35. Rd1
{[%clk 0:01:00.3]} 35... Be5 {[%clk 0:00:16.7]} 36. f4 {[%clk 0:00:52.6]} 36...
Qg4 {[%clk 0:00:16.6]} 37. Re1 {[%clk 0:00:50.7]} 37... Re6 {[%clk 0:00:06.5]}
38. Qc8+ {[%clk 0:00:47.6]} 38... Kg7 {[%clk 0:00:06.8]} 39. Rxe5 {[%clk
0:00:45.8]} 39... h5 {[%clk 0:00:06.5]} 40. Rxe6 {[%clk 0:00:43.2]} 40... fxe6
{[%clk 0:00:07.4]} 41. Qc3+ {[%clk 0:00:41.6]} 41... Kf7 {[%clk 0:00:06.9]} 42.
Qc7+ {[%clk 0:00:39.9]} 42... Kg8 {[%clk 0:00:05.5]} 43. Qd8+ {[%clk 0:00:33.9]}
43... Kf7 {[%clk 0:00:05.4]} 44. Qd7+ {[%clk 0:00:33]} 44... Kg8 {[%clk
0:00:05.4]} 45. Qd2 {[%clk 0:00:30.2]} 45... Qf5 {[%clk 0:00:04.9]} 46. h3
{[%clk 0:00:28.8]} 46... Qe4+ {[%clk 0:00:04.8]} 47. Kh2 {[%clk 0:00:29]} 47...
h4 {[%clk 0:00:05]} 48. g4 {[%clk 0:00:27.3]} 48... Qf3 {[%clk 0:00:04.8]} 49.
Bxh4 {[%clk 0:00:26.1]} 49... e5 {[%clk 0:00:04.3]} 50. fxe5 {[%clk 0:00:25.1]}
50... Qxa3 {[%clk 0:00:04.8]} 51. Bg3 {[%clk 0:00:24.7]} 51... Qxb4 {[%clk
0:00:05.1]} 52. e6 {[%clk 0:00:23.3]} 52... Qxd2+ {[%clk 0:00:04.9]} 53. Kg1
{[%clk 0:00:15.7]} 53... Qe2 {[%clk 0:00:05.8]} 54. g5 {[%clk 0:00:04.5]} 54...
Qxe6 {[%clk 0:00:05.6]} 55. h4 {[%clk 0:00:05]} 55... a5 {[%clk 0:00:06]} 56.
Kg2 {[%clk 0:00:05.4]} 56... a4 {[%clk 0:00:06.5]} 57. Kf3 {[%clk 0:00:05.9]}
57... a3 {[%clk 0:00:07]} 58. Bf4 {[%clk 0:00:05.9]} 58... a2 {[%clk 0:00:06.4]}
59. h5 {[%clk 0:00:04.6]} 59... a1=Q {[%clk 0:00:06.6]} 0-1

[Event "*** Titled Tuesday Blitz"]
[Site "Chess.com"]
[Date "2020.04.28"]
[Round "7"]
[White "IwkooO"]
[Black "ahachess"]
[Result "1-0"]
[WhiteElo "2573"]
[BlackElo "2363"]
[TimeControl "180+1"]
[EndTime "11:19:41 PDT"]
[Termination "IwkooO won on time"]

1. c4 {[%clk 0:03:00.9]} 1... g6 {[%clk 0:02:58]} 2. g3 {[%clk 0:02:58.4]} 2...
Bg7 {[%clk 0:02:58.1]} 3. Bg2 {[%clk 0:02:59]} 3... d6 {[%clk 0:02:56.2]} 4. Nc3
{[%clk 0:02:58]} 4... Nf6 {[%clk 0:02:54.8]} 5. e4 {[%clk 0:02:58.2]} 5... O-O
{[%clk 0:02:54.4]} 6. Nge2 {[%clk 0:02:58.6]} 6... e5 {[%clk 0:02:49]} 7. O-O
{[%clk 0:02:58.8]} 7... Nc6 {[%clk 0:02:48.2]} 8. d3 {[%clk 0:02:59.4]} 8... Bg4
{[%clk 0:02:45.3]} 9. f3 {[%clk 0:02:50.7]} 9... Be6 {[%clk 0:02:45]} 10. Be3
{[%clk 0:02:50.8]} 10... Qd7 {[%clk 0:02:44.8]} 11. Qd2 {[%clk 0:02:36.5]} 11...
Bh3 {[%clk 0:02:39.1]} 12. d4 {[%clk 0:02:22.3]} 12... Bxg2 {[%clk 0:02:36.5]}
13. Kxg2 {[%clk 0:02:22.2]} 13... exd4 {[%clk 0:02:36.2]} 14. Nxd4 {[%clk
0:02:22.2]} 14... Rfe8 {[%clk 0:02:33.1]} 15. Nxc6 {[%clk 0:02:13.2]} 15... Qxc6
{[%clk 0:02:30.7]} 16. b3 {[%clk 0:02:08.5]} 16... a6 {[%clk 0:02:27.5]} 17.
Rac1 {[%clk 0:02:07.2]} 17... Rad8 {[%clk 0:02:21.1]} 18. Nd5 {[%clk 0:02:02.5]}
18... Qd7 {[%clk 0:01:53.9]} 19. Bg5 {[%clk 0:01:55.9]} 19... Re6 {[%clk
0:01:51.2]} 20. Rfd1 {[%clk 0:01:47.6]} 20... Rde8 {[%clk 0:01:45.7]} 21. Bxf6
{[%clk 0:01:36.5]} 21... Bxf6 {[%clk 0:01:45.1]} 22. c5 {[%clk 0:01:27.7]} 22...
Bd8 {[%clk 0:01:37]} 23. Nf4 {[%clk 0:01:15.9]} 23... Bg5 {[%clk 0:01:27.6]} 24.
Rc4 {[%clk 0:01:06.5]} 24... Qe7 {[%clk 0:01:09.9]} 25. Nd5 {[%clk 0:00:44.9]}
25... Bxd2 {[%clk 0:01:04]} 26. Nxe7+ {[%clk 0:00:44.9]} 26... R8xe7 {[%clk
0:01:04.9]} 27. Rxd2 {[%clk 0:00:45.8]} 27... dxc5 {[%clk 0:01:04.3]} 28. Rxc5
{[%clk 0:00:46.7]} 28... c6 {[%clk 0:00:56.9]} 29. g4 {[%clk 0:00:46.8]} 29...
h6 {[%clk 0:00:56]} 30. h4 {[%clk 0:00:45.3]} 30... Kg7 {[%clk 0:00:55.3]} 31.
Kg3 {[%clk 0:00:45.2]} 31... Re5 {[%clk 0:00:45.9]} 32. Rc4 {[%clk 0:00:26.1]}
32... Kf6 {[%clk 0:00:29.4]} 33. Rcd4 {[%clk 0:00:18.3]} 33... g5 {[%clk
0:00:19.8]} 34. hxg5+ {[%clk 0:00:15]} 34... hxg5 {[%clk 0:00:20.7]} 35. Rh2
{[%clk 0:00:14.8]} 35... Kg7 {[%clk 0:00:19]} 36. Rd8 {[%clk 0:00:11.8]} 36...
Rc5 {[%clk 0:00:17.6]} 37. Rhh8 {[%clk 0:00:11.9]} 37... Rc3 {[%clk 0:00:15.5]}
38. Rdg8+ {[%clk 0:00:12.2]} 38... Kf6 {[%clk 0:00:11.9]} 39. Rh6+ {[%clk
0:00:13.1]} 39... Ke5 {[%clk 0:00:12.2]} 40. Rxg5+ {[%clk 0:00:13.7]} 40... Kd4
{[%clk 0:00:12.6]} 41. Rf5 {[%clk 0:00:13.4]} 41... Rc2 {[%clk 0:00:08.5]} 42.
Rh2 {[%clk 0:00:13.3]} 42... Rxh2 {[%clk 0:00:05.7]} 43. Kxh2 {[%clk 0:00:14.2]}
43... c5 {[%clk 0:00:05.2]} 44. Kg3 {[%clk 0:00:13.6]} 44... Rd7 {[%clk
0:00:03.7]} 45. Kf4 {[%clk 0:00:12.6]} 45... b5 {[%clk 0:00:04.2]} 46. Rf6
{[%clk 0:00:05.6]} 46... c4 {[%clk 0:00:03.7]} 47. bxc4 {[%clk 0:00:06.2]} 47...
bxc4 {[%clk 0:00:04.3]} 48. Rxa6 {[%clk 0:00:06.3]} 48... Rc7 {[%clk 0:00:03.8]}
49. Rd6+ {[%clk 0:00:04.9]} 49... Kc3 {[%clk 0:00:04.3]} 50. Kf5 {[%clk
0:00:03.5]} 50... Kb2 {[%clk 0:00:04.7]} 51. Rd2+ {[%clk 0:00:03.2]} 51... Ka3
{[%clk 0:00:01.5]} 52. e5 {[%clk 0:00:02.2]} 1-0

[Event "*** Titled Tuesday Blitz"]
[Site "Chess.com"]
[Date "2020.04.28"]
[Round "7"]
[White "Rumpel-VK"]
[Black "SCIM"]
[Result "1-0"]
[WhiteElo "2629"]
[BlackElo "2492"]
[TimeControl "180+1"]
[EndTime "11:19:42 PDT"]
[Termination "Rumpel-VK won by checkmate"]

1. e4 {[%clk 0:03:00.9]} 1... c5 {[%clk 0:02:59.2]} 2. g3 {[%clk 0:03:00.9]}
2... Nc6 {[%clk 0:02:58.1]} 3. Bg2 {[%clk 0:03:00.8]} 3... g6 {[%clk 0:02:58.1]}
4. d3 {[%clk 0:03:01]} 4... Bg7 {[%clk 0:02:58.5]} 5. f4 {[%clk 0:03:01.2]} 5...
d6 {[%clk 0:02:53.3]} 6. Nf3 {[%clk 0:03:01.6]} 6... Bg4 {[%clk 0:02:48.1]} 7.
O-O {[%clk 0:03:00.5]} 7... e6 {[%clk 0:02:45.5]} 8. h3 {[%clk 0:03:00.4]} 8...
Bxf3 {[%clk 0:02:45.4]} 9. Qxf3 {[%clk 0:02:59.8]} 9... Nge7 {[%clk 0:02:43.4]}
10. c3 {[%clk 0:02:58.4]} 10... O-O {[%clk 0:02:42.3]} 11. Be3 {[%clk
0:02:58.3]} 11... b5 {[%clk 0:02:36.9]} 12. Nd2 {[%clk 0:02:52.5]} 12... b4
{[%clk 0:02:35.1]} 13. Rac1 {[%clk 0:02:52.2]} 13... bxc3 {[%clk 0:02:30.7]} 14.
bxc3 {[%clk 0:02:51.8]} 14... Rb8 {[%clk 0:02:31.4]} 15. Rc2 {[%clk 0:02:43.1]}
15... Qa5 {[%clk 0:02:06.7]} 16. Nc4 {[%clk 0:02:40.3]} 16... Qc7 {[%clk
0:02:06.8]} 17. e5 {[%clk 0:02:35.6]} 17... d5 {[%clk 0:01:46.2]} 18. Nd6 {[%clk
0:02:33.5]} 18... Na5 {[%clk 0:00:49.7]} 19. Rfc1 {[%clk 0:02:13.9]} 19... Nf5
{[%clk 0:00:44.8]} 20. Nxf5 {[%clk 0:02:11.3]} 20... gxf5 {[%clk 0:00:45.7]} 21.
g4 {[%clk 0:02:10.6]} 21... fxg4 {[%clk 0:00:44.2]} 22. hxg4 {[%clk 0:02:10.7]}
22... f6 {[%clk 0:00:35]} 23. exf6 {[%clk 0:02:03.6]} 23... Rxf6 {[%clk
0:00:35.9]} 24. f5 {[%clk 0:02:00.7]} 24... Nc6 {[%clk 0:00:29.9]} 25. Bf4
{[%clk 0:01:52.7]} 25... e5 {[%clk 0:00:19.9]} 26. Qxd5+ {[%clk 0:01:52.2]}
26... Kh8 {[%clk 0:00:20.3]} 27. Bg5 {[%clk 0:01:49.6]} 27... Rd6 {[%clk
0:00:20.3]} 28. Qe4 {[%clk 0:01:37.6]} 28... Rg8 {[%clk 0:00:19.8]} 29. Be3
{[%clk 0:01:34.4]} 29... Bf8 {[%clk 0:00:17.1]} 30. Bf3 {[%clk 0:01:30.3]} 30...
h5 {[%clk 0:00:14.8]} 31. Rh2 {[%clk 0:01:28.9]} 31... Qf7 {[%clk 0:00:12.2]}
32. g5 {[%clk 0:01:23.6]} 32... Ne7 {[%clk 0:00:06.5]} 33. Rxh5+ {[%clk
0:01:21.3]} 33... Rh6 {[%clk 0:00:06.7]} 34. Qxe5+ {[%clk 0:01:17.5]} 34... Kh7
{[%clk 0:00:05]} 35. Rxh6+ {[%clk 0:00:17.3]} 35... Bxh6 {[%clk 0:00:04.3]} 36.
Be4 {[%clk 0:00:17.8]} 36... Bxg5 {[%clk 0:00:03.6]} 37. f6+ {[%clk 0:00:16.7]}
37... Kh6 {[%clk 0:00:02.5]} 38. Qh2+ {[%clk 0:00:16.6]} 38... Qh5 {[%clk
0:00:03.1]} 39. Qxh5+ {[%clk 0:00:14.9]} 39... Kxh5 {[%clk 0:00:04]} 40. Bxg5
{[%clk 0:00:12.4]} 40... Rxg5+ {[%clk 0:00:04.9]} 41. Kf2 {[%clk 0:00:12.4]}
41... Ng6 {[%clk 0:00:05.3]} 42. Rh1+ {[%clk 0:00:11.5]} 42... Kg4 {[%clk
0:00:03.7]} 43. Rg1+ {[%clk 0:00:12]} 43... Kf4 {[%clk 0:00:03.7]} 44. Rxg5
{[%clk 0:00:11.7]} 44... Kxg5 {[%clk 0:00:04.6]} 45. Bxg6 {[%clk 0:00:10.9]}
45... Kxg6 {[%clk 0:00:05.1]} 46. Ke3 {[%clk 0:00:11.3]} 46... Kxf6 {[%clk
0:00:05.5]} 47. d4 {[%clk 0:00:10.5]} 47... cxd4+ {[%clk 0:00:05.9]} 48. Kxd4
{[%clk 0:00:10.2]} 48... Ke6 {[%clk 0:00:06.8]} 49. Kc5 {[%clk 0:00:10.2]} 49...
Kd7 {[%clk 0:00:07.2]} 50. Kb5 {[%clk 0:00:09.8]} 50... Kc7 {[%clk 0:00:07.2]}
51. Ka6 {[%clk 0:00:09]} 51... Kb8 {[%clk 0:00:08.1]} 52. Kb5 {[%clk 0:00:07.8]}
52... Kb7 {[%clk 0:00:08.1]} 53. a3 {[%clk 0:00:06.4]} 53... Kc7 {[%clk
0:00:08.1]} 54. Kc5 {[%clk 0:00:06.5]} 54... Kb7 {[%clk 0:00:09]} 55. Kd6 {[%clk
0:00:06.5]} 55... Kc8 {[%clk 0:00:08.5]} 56. c4 {[%clk 0:00:07]} 56... Kd8
{[%clk 0:00:07.6]} 57. c5 {[%clk 0:00:07]} 57... Kc8 {[%clk 0:00:08.2]} 58. Kc6
{[%clk 0:00:06.1]} 58... Kb8 {[%clk 0:00:04.4]} 59. Kd7 {[%clk 0:00:05.5]} 59...
a6 {[%clk 0:00:01.8]} 60. c6 {[%clk 0:00:06.4]} 60... Ka7 {[%clk 0:00:02]} 61.
c7 {[%clk 0:00:06.4]} 61... Kb7 {[%clk 0:00:02.9]} 62. c8=Q+ {[%clk 0:00:06.7]}
62... Kb6 {[%clk 0:00:03.8]} 63. Qc6+ {[%clk 0:00:06.8]} 63... Ka5 {[%clk
0:00:03.9]} 64. Qb7 {[%clk 0:00:07.1]} 64... Ka4 {[%clk 0:00:03.8]} 65. Qb4#
{[%clk 0:00:07.6]} 1-0

[Event "*** Titled Tuesday Blitz"]
[Site "Chess.com"]
[Date "2020.04.28"]
[Round "7"]
[White "YQPerez"]
[Black "GMStefanova"]
[Result "1-0"]
[WhiteElo "2955"]
[BlackElo "2693"]
[TimeControl "180+1"]
[EndTime "11:19:45 PDT"]
[Termination "YQPerez won on time"]

1. e4 {[%clk 0:03:00.9]} 1... e5 {[%clk 0:02:59.6]} 2. Nf3 {[%clk 0:03:00.6]}
2... Nc6 {[%clk 0:02:59.8]} 3. Nc3 {[%clk 0:03:00.3]} 3... Nf6 {[%clk
0:02:58.9]} 4. Bb5 {[%clk 0:03:00]} 4... Bb4 {[%clk 0:02:58.9]} 5. O-O {[%clk
0:02:59]} 5... O-O {[%clk 0:02:57.7]} 6. Bxc6 {[%clk 0:02:59]} 6... bxc6 {[%clk
0:02:54.5]} 7. Nxe5 {[%clk 0:02:58.2]} 7... Bxc3 {[%clk 0:02:52.6]} 8. dxc3
{[%clk 0:02:58.2]} 8... Nxe4 {[%clk 0:02:43.1]} 9. Re1 {[%clk 0:02:57.3]} 9...
Nd6 {[%clk 0:02:37.1]} 10. Qg4 {[%clk 0:02:49.8]} 10... f5 {[%clk 0:02:33.7]}
11. Qh5 {[%clk 0:02:32.9]} 11... f4 {[%clk 0:02:28.1]} 12. Nd3 {[%clk
0:02:23.6]} 12... Ba6 {[%clk 0:02:22.9]} 13. Nxf4 {[%clk 0:02:20.1]} 13... Qf6
{[%clk 0:02:20.7]} 14. Be3 {[%clk 0:02:11.4]} 14... Nf5 {[%clk 0:02:18.3]} 15.
Rad1 {[%clk 0:01:56.5]} 15... d6 {[%clk 0:02:08.9]} 16. Bc1 {[%clk 0:01:53.4]}
16... Bc4 {[%clk 0:01:46.6]} 17. a3 {[%clk 0:01:34.9]} 17... a5 {[%clk
0:01:38.5]} 18. Qg4 {[%clk 0:01:30.8]} 18... Bf7 {[%clk 0:01:09.9]} 19. h3
{[%clk 0:01:11.8]} 19... a4 {[%clk 0:01:08.2]} 20. Nh5 {[%clk 0:00:59.6]} 20...
Qg6 {[%clk 0:01:01.3]} 21. Qxg6 {[%clk 0:00:55.7]} 21... Bxg6 {[%clk 0:01:01.4]}
22. Nf4 {[%clk 0:00:55.8]} 22... Bf7 {[%clk 0:01:01.6]} 23. Nd3 {[%clk
0:00:49.6]} 23... c5 {[%clk 0:01:00.6]} 24. Nf4 {[%clk 0:00:49.7]} 24... Rae8
{[%clk 0:00:56.6]} 25. Bd2 {[%clk 0:00:42.3]} 25... g5 {[%clk 0:00:54.7]} 26.
Nd3 {[%clk 0:00:38.7]} 26... h6 {[%clk 0:00:53.1]} 27. Rxe8 {[%clk 0:00:38.3]}
27... Bxe8 {[%clk 0:00:48.4]} 28. Re1 {[%clk 0:00:39.2]} 28... Bg6 {[%clk
0:00:48.2]} 29. g3 {[%clk 0:00:33.4]} 29... Kf7 {[%clk 0:00:44.6]} 30. Kg2
{[%clk 0:00:32]} 30... Rb8 {[%clk 0:00:44.5]} 31. f4 {[%clk 0:00:30.8]} 31... c4
{[%clk 0:00:41.4]} 32. Nb4 {[%clk 0:00:26.3]} 32... c5 {[%clk 0:00:41.2]} 33.
fxg5 {[%clk 0:00:18]} 33... cxb4 {[%clk 0:00:40.8]} 34. axb4 {[%clk 0:00:17.4]}
34... h5 {[%clk 0:00:36.5]} 35. Bf4 {[%clk 0:00:16.4]} 35... Ra8 {[%clk
0:00:33.1]} 36. g4 {[%clk 0:00:16]} 36... hxg4 {[%clk 0:00:32.7]} 37. hxg4
{[%clk 0:00:16.9]} 37... Ng7 {[%clk 0:00:30.1]} 38. Bxd6 {[%clk 0:00:17.1]}
38... Ne6 {[%clk 0:00:30.2]} 39. Rf1+ {[%clk 0:00:17.2]} 39... Ke8 {[%clk
0:00:25.3]} 40. Rf6 {[%clk 0:00:17.3]} 40... Kd7 {[%clk 0:00:25.1]} 41. Be5
{[%clk 0:00:13.4]} 41... Bxc2 {[%clk 0:00:23.5]} 42. g6 {[%clk 0:00:11.1]} 42...
a3 {[%clk 0:00:22.8]} 43. bxa3 {[%clk 0:00:10.6]} 43... Rxa3 {[%clk 0:00:22.3]}
44. Rf7+ {[%clk 0:00:09.7]} 44... Kc6 {[%clk 0:00:21]} 45. g7 {[%clk 0:00:09.7]}
45... Ra8 {[%clk 0:00:20.3]} 46. Kg3 {[%clk 0:00:07.3]} 46... Kd5 {[%clk
0:00:19.9]} 47. Bf6 {[%clk 0:00:07.6]} 47... Rg8 {[%clk 0:00:16.4]} 48. g5
{[%clk 0:00:07.5]} 48... Bg6 {[%clk 0:00:15.3]} 49. Rd7+ {[%clk 0:00:07.5]}
49... Ke4 {[%clk 0:00:14.7]} 50. Re7 {[%clk 0:00:05.3]} 50... Kf5 {[%clk
0:00:14]} 51. Kf3 {[%clk 0:00:05.7]} 51... Bh5+ {[%clk 0:00:12.9]} 52. Ke3
{[%clk 0:00:05.8]} 52... Rc8 {[%clk 0:00:07.7]} 53. b5 {[%clk 0:00:05.8]} 53...
Rg8 {[%clk 0:00:05.7]} 54. b6 {[%clk 0:00:06.1]} 54... Be8 {[%clk 0:00:04.3]}
55. b7 {[%clk 0:00:06.2]} 55... Bc6 {[%clk 0:00:04.2]} 56. Kf2 {[%clk 0:00:02]}
56... Nxg5 {[%clk 0:00:04.2]} 57. Bxg5 {[%clk 0:00:02]} 57... Kxg5 {[%clk
0:00:04.3]} 58. Ke3 {[%clk 0:00:02.9]} 58... Kf6 {[%clk 0:00:04.3]} 59. Rc7
{[%clk 0:00:03.4]} 59... Bh1 {[%clk 0:00:03.9]} 60. Kd4 {[%clk 0:00:04.1]} 60...
Ke6 {[%clk 0:00:02.8]} 61. Kc5 {[%clk 0:00:04.2]} 61... Ke5 {[%clk 0:00:01.8]}
62. Kb6 {[%clk 0:00:04.3]} 62... Kd6 {[%clk 0:00:01.4]} 63. Rxc4 {[%clk
0:00:02.6]} 1-0